bitfinex-derivatives/quotes_ETHF0:USTF0_20250709
["timestamp","ask_amount","ask_price","bid_price","bid_amount"]
[1752038225806,27.57766,2610.0,2609.9,6.12970515]
[1752038227310,26.8115,2610.0,2609.9,4.8298]
[1752038227515,0.6335,2610.0,2609.9,8.91253739]
[1752038227705,26.178,2610.0,2609.9,8.91253739]
[1752038229512,26.94416,2610.0,2609.9,9.67872739]
[1752038229718,26.178,2610.0,2609.9,9.67872739]
[1752038230505,26.8115,2610.0,2609.9,8.70952739]
[1752038230715,26.178,2610.0,2609.9,8.70952739]
[1752038231014,26.8115,2610.0,2609.9,8.70952739]
[1752038231415,27.57766,2610.0,2609.9,8.70952739]
[1752038232121,0.6335,2610.0,2609.9,8.70952739]
[1752038232320,0.6335,2610.0,2609.9,5.30589]
[1752038232514,1.39966,2610.0,2609.9,5.30589]
[1752038238720,1.39966,2610.0,2609.9,4.65309]
[1752038239223,1.39966,2610.0,2609.9,5.28139]
[1752038240118,2.34616,2610.0,2609.9,3.8361]
[1752038240325,3.61806,2610.0,2609.9,3.8361]
[1752038241328,4.91127704,2610.0,2609.9,3.2078]
[1752038241522,4.91127704,2610.0,2609.9,6.61620512]
[1752038242722,0.76619,2609.9,2609.8,2.79857467]
[1752038242928,3.69899,2609.9,2609.8,2.79857467]
[1752038244829,3.69899,2609.9,2609.8,3.42687467]
[1752038245530,29.87199,2609.9,2609.8,3.42687467]
[1752038247833,28.92549,2609.9,2609.8,3.42687467]
[1752038248032,29.87199,2609.9,2609.8,3.42687467]
[1752038248831,29.87199,2609.9,2609.8,4.19309467]
[1752038249534,0.76619,2610.0,2609.9,0.76619]
[1752038249730,27.61119,2610.0,2609.9,1.39449]
[1752038250833,26.845,2610.0,2609.9,1.39449]
[1752038251034,26.173,2610.0,2609.9,1.29321704]
[1752038251330,0.00574537,2610.2,2610.1,0.76614]
[1752038251535,27.61685537,2610.2,2610.1,0.76614]
[1752038252131,0.76614,2610.1,2610.0,0.76614]
[1752038253534,26.93714,2610.1,2610.0,0.76614]
[1752038254641,27.61014,2610.1,2610.0,1.39444]
[1752038254831,27.61014,2610.1,2610.0,0.76614]
[1752038255034,27.61014,2610.1,2610.0,1.39444]
[1752038255233,0.76618,2610.0,2609.9,0.76618]
[1752038255839,0.76618,2610.0,2609.9,1.39448]
[1752038256238,2.06558,2610.0,2609.9,1.39448]
[1752038256539,1.2994,2610.0,2609.9,1.39448]
[1752038257236,2.06556,2610.0,2609.9,1.39448]
[1752038257842,1.2994,2610.0,2609.9,1.39448]
[1752038258037,2.06556,2610.0,2609.9,1.39448]
[1752038258240,1.2994,2610.0,2609.9,1.39448]
[1752038259243,26.171,2610.1,2610.0,0.76616]
[1752038259438,26.844,2610.1,2610.0,0.76616]
[1752038259935,26.844,2610.1,2610.0,1.39446]
[1752038260142,0.00574537,2610.2,2610.1,0.76614]
[1752038260338,0.67874537,2610.2,2610.1,1.39444]
[1752038261042,0.67874537,2610.2,2610.1,0.76614]
[1752038261436,0.67874537,2610.2,2610.1,1.39444]
[1752038264845,0.67874537,2610.2,2610.1,4.80567566]
[1752038265345,0.67874537,2610.2,2610.1,1.39444]
[1752038265545,0.67874537,2610.2,2610.1,4.80526386]
[1752038266045,0.67874537,2610.2,2610.1,5.77086386]
[1752038266248,0.00574537,2610.2,2610.1,5.77086386]
[1752038266443,0.00574537,2610.2,2610.1,2.36004]
[1752038266743,0.00574537,2610.2,2610.1,3.65384]
[1752038267641,0.00574537,2610.2,2610.1,4.28324]
[1752038272945,0.00574537,2610.2,2610.1,8.82577143]
[1752038273247,28.1027,2610.7,2610.6,0.76599]
[1752038273248,28.1017,2610.7,2610.6,0.76599]
[1752038273538,28.7853,2610.7,2610.6,0.76599]
[1752038273744,27.5156,2610.7,2610.6,3.68636643]
[1752038273945,1.3556,2610.7,2610.6,3.68636643]
[1752038274243,1.3556,2610.7,2610.6,1.41439]
[1752038274244,0.6836,2610.7,2610.6,1.41439]
[1752038274438,0.6836,2610.7,2610.6,3.68530511]
[1752038274843,1.44956,2610.7,2610.6,3.68530511]
[1752038275141,2.40266,2610.7,2610.6,3.68530511]
[1752038275744,2.40266,2610.7,2610.6,2.91931511]
[1752038276045,2.40266,2610.7,2610.6,2.27091511]
[1752038276547,3.67336,2610.7,2610.6,2.27091511]
[1752038277353,0.76599,2610.6,2610.5,3.03692511]
[1752038277650,4.34429,2610.6,2610.5,3.03692511]
[1752038278142,3.39119,2610.6,2610.5,3.03692511]
[1752038278343,4.34429,2610.6,2610.5,3.03692511]
[1752038280049,4.34429,2610.6,2610.5,3.68532511]
[1752038280251,4.34429,2610.6,2610.5,3.03692511]
[1752038281045,4.34429,2610.6,2610.5,2.27091511]
[1752038282449,4.34429,2610.6,2610.5,3.03693511]
[1752038282845,4.34429,2610.6,2610.5,3.68533511]
[1752038283159,4.34429,2610.6,2610.5,3.03693511]
[1752038283350,4.34429,2610.6,2610.5,3.68533511]
[1752038284252,4.34429,2610.6,2610.5,1.41442]
[1752038285652,4.34429,2610.6,2610.5,0.6484]
[1752038285951,4.34429,2610.6,2610.5,1.41442]
[1752038288448,1.3545,2610.6,2610.5,1.41442]
[1752038288653,0.6836,2610.6,2610.5,1.41442]
[1752038288855,2.3106,2610.9,2610.5,1.41442]
[1752038288856,0.76595,2610.8,2610.7,0.76596]
[1752038289049,27.60055,2610.8,2610.7,2.46774463]
[1752038289449,27.59955,2610.8,2610.7,1.70178463]
[1752038289653,2.80705,2610.8,2610.7,1.70178463]
[1752038289845,0.76596,2610.7,2610.6,3.03501618]
[1752038290755,0.76596,2610.7,2610.6,2.26904618]
[1752038291053,2.14616,2610.7,2610.6,2.26904618]
[1752038292556,3.78286,2610.7,2610.6,2.26904618]
[1752038293255,3.78286,2610.7,2610.6,3.03503618]
[1752038293656,3.78286,2610.7,2610.6,2.26904618]
[1752038294956,3.78286,2610.7,2610.6,3.03503618]
[1752038295156,3.78286,2610.7,2610.6,3.68343618]
[1752038295456,3.78286,2610.7,2610.6,0.76599]
[1752038295652,3.78286,2610.7,2610.6,1.41439]
[1752038296852,3.78286,2610.7,2610.6,0.6484]
[1752038297057,0.76599,2610.6,2610.5,6.61576464]
[1752038297252,4.38689,2610.6,2610.5,7.25106464]
[1752038297459,4.38689,2610.6,2610.5,6.61576464]
[1752038298059,4.38689,2610.6,2610.5,7.25106464]
[1752038298358,4.38689,2610.6,2610.5,8.01708464]
[1752038299261,4.38689,2610.6,2610.5,4.60912]
[1752038300160,2.09539,2610.6,2610.5,4.60912]
[1752038301265,3.11779,2610.6,2610.5,4.60912]
[1752038301966,3.11779,2610.6,2610.5,3.8431]
[1752038302165,3.11779,2610.6,2610.5,4.60912]
[1752038303966,3.11779,2610.6,2610.5,3.8431]
[1752038304868,3.11779,2610.6,2610.5,3.2078]
[1752038305666,4.41100704,2610.6,2610.5,3.2078]
[1752038306872,4.41100704,2610.6,2610.5,3.8431]
[1752038307072,4.41100704,2610.6,2610.5,3.2078]
[1752038311577,4.41100704,2610.6,2610.5,6.62020415]
[1752038312680,4.41100704,2610.6,2610.5,3.41240415]
[1752038312879,3.11779,2610.6,2610.5,3.41240415]
[1752038313484,4.38659,2610.6,2610.5,3.41240415]
[1752038314881,4.38659,2610.6,2610.5,4.04770415]
[1752038315083,28.23539,2610.6,2610.5,4.81372415]
[1752038315983,28.23539,2610.6,2610.5,4.17842415]
[1752038316386,28.23539,2610.6,2610.5,4.81372415]
[1752038319386,28.23439,2610.6,2610.5,4.81372415]
[1752038319889,0.76597,2610.8,2610.7,0.76593]
[1752038320088,0.76597,2610.8,2610.6,1.44027]
[1752038320089,0.76596,2610.7,2610.6,1.44027]
[1752038320288,1.42086,2610.7,2610.6,4.85267415]
[1752038320487,1.42086,2610.7,2610.6,5.48797415]
[1752038320682,0.76596,2610.7,2610.6,6.49357415]
[1752038320882,27.55886,2610.7,2610.6,5.48797415]
[1752038321082,27.55886,2610.7,2610.6,5.4867174]
[1752038321992,26.90396,2610.7,2610.6,5.4867174]
[1752038322187,27.55886,2610.7,2610.6,5.4867174]
[1752038322386,27.55886,2610.7,2610.6,4.7207474]
[1752038323394,27.55886,2610.7,2610.6,4.0854474]
[1752038323587,27.55886,2610.7,2610.6,4.7207474]
[1752038323890,27.55886,2610.7,2610.6,4.0854474]
[1752038324092,27.55886,2610.7,2610.6,4.7207474]
[1752038326894,27.55886,2610.7,2610.6,5.4867374]
[1752038327193,26.90396,2610.7,2610.6,5.4867374]
[1752038327390,27.55706,2610.7,2610.6,5.4867374]
[1752038327589,26.90396,2610.7,2610.6,5.4867374]
[1752038327990,27.55706,2610.7,2610.6,5.4867374]
[1752038328290,1.41906,2610.7,2610.6,5.4867374]
[1752038328595,27.55406,2610.7,2610.6,5.4867374]
[1752038329890,1.41906,2610.7,2610.6,5.4867374]
[1752038330091,27.55406,2610.7,2610.6,5.4867374]
[1752038330390,27.55406,2610.7,2610.6,6.4809374]
[1752038330590,27.55406,2610.7,2610.6,5.4867374]
[1752038331895,26.7881,2610.7,2610.6,5.4867374]
[1752038332799,27.55106,2610.7,2610.6,6.4809374]
[1752038333400,27.55106,2610.7,2610.6,5.4867374]
[1752038337496,27.55106,2610.7,2610.6,4.7207474]
[1752038337698,28.53596,2610.7,2610.6,4.7207474]
[1752038338898,29.56918816,2610.7,2610.6,4.7207474]
[1752038339104,28.58128816,2610.7,2610.6,5.4867374]
[1752038339897,28.58128816,2610.7,2610.6,4.7207474]
[1752038340900,27.54806,2610.7,2610.6,5.4867374]
[1752038341297,27.54806,2610.7,2610.6,4.7207474]
[1752038341602,0.76599,2610.6,2610.5,3.4111474]
[1752038341804,3.77289,2610.6,2610.5,4.0596474]
[1752038343400,3.77289,2610.6,2610.5,0.6485]
[1752038343601,0.76602,2610.5,2610.4,3.86704537]
[1752038343904,4.39952,2610.5,2610.4,1.42529537]
[1752038344104,4.39952,2610.5,2610.4,5.28159537]
[1752038344606,30.52652,2610.5,2610.4,3.86204537]
[1752038345100,30.52652,2610.5,2610.4,4.62809537]
[1752038346104,30.52652,2610.5,2610.4,3.86204537]
[1752038346405,31.81801827,2610.5,2610.4,3.86204537]
[1752038346807,29.54162,2610.5,2610.4,3.86204537]
[1752038347715,28.17272,2610.5,2610.4,3.86204537]
[1752038348005,28.17272,2610.5,2610.4,7.27577621]
[1752038348405,28.17272,2610.5,2610.4,8.04182621]
[1752038349001,28.17272,2610.5,2610.4,7.27577621]
[1752038349202,29.15762,2610.5,2610.4,7.27577621]
[1752038350905,29.15762,2610.5,2610.4,8.04182621]
[1752038351101,29.15762,2610.5,2610.4,7.27577621]
[1752038351404,29.15762,2610.5,2610.4,8.04182621]
[1752038351605,29.15762,2610.5,2610.4,7.27577621]
[1752038355908,29.15762,2610.5,2610.4,8.04182621]
[1752038356213,29.15762,2610.5,2610.4,7.27577621]
[1752038356512,28.16772,2610.5,2610.4,7.27577621]
[1752038357816,30.46472,2610.5,2610.4,7.27577621]
[1752038360008,31.75621827,2610.5,2610.4,6.62727621]
[1752038360209,31.75621827,2610.5,2610.4,3.41947621]
[1752038360607,31.75621827,2610.5,2610.4,0.00574537]
[1752038361711,28.16572,2610.5,2610.4,0.63844537]
[1752038361916,27.51082,2610.5,2610.4,4.73337621]
[1752038362310,27.51082,2610.5,2610.4,5.49942621]
[1752038362512,27.51082,2610.5,2610.4,8.70722621]
[1752038364017,1.39082,2610.5,2610.4,8.70722621]
[1752038364211,27.50982,2610.5,2610.4,8.07452621]
[1752038364411,27.50882,2610.5,2610.4,8.70722621]
[1752038365010,1.39082,2610.5,2610.4,8.70722621]
[1752038365209,27.50882,2610.5,2610.4,8.70722621]
[1752038367311,1.39082,2610.5,2610.4,8.70722621]
[1752038367516,27.50782,2610.5,2610.4,8.70722621]
[1752038368217,27.50782,2610.5,2610.4,5.49942621]
[1752038368516,1.39082,2610.5,2610.4,8.70722621]
[1752038368716,27.50782,2610.5,2610.4,8.70722621]
[1752038369015,29.80801827,2610.5,2610.4,5.85654621]
[1752038369212,32.24979827,2610.5,2610.3,2.27725477]
[1752038369413,5.62254827,2610.4,2610.3,2.27725477]
[1752038369617,5.62254827,2610.4,2610.3,2.27150939]
[1752038369811,10.62254827,2610.4,2610.3,1.7082705]
[1752038370010,9.85649827,2610.4,2609.9,1.7082705]
[1752038370318,0.7662,2609.9,2609.8,3.97401]
[1752038370514,27.507,2609.9,2609.8,4.5091]
[1752038371015,0.76618,2610.0,2609.8,5.27532]
[1752038371316,26.116,2609.9,2609.8,6.21812]
[1752038371813,27.507,2609.9,2609.8,5.27532]
[1752038372014,26.8822,2609.9,2609.8,5.27532]
[1752038372215,27.507,2609.9,2609.8,5.27532]
[1752038372913,1.391,2609.9,2609.8,5.27532]
[1752038373122,1.391,2609.9,2609.8,6.98072001]
[1752038373819,2.3997,2609.9,2609.8,6.21451522]
[1752038374215,2.3997,2609.9,2609.8,5.58181522]
[1752038374416,2.3997,2609.9,2609.8,4.5091]
[1752038374615,2.3997,2609.9,2609.8,3.8764]
[1752038374815,2.3997,2609.9,2609.8,4.5091]
[1752038377027,2.3997,2609.9,2609.8,1.3013]
[1752038377726,0.76622,2609.8,2609.7,1.70541522]
[1752038377926,31.77161827,2609.8,2609.7,1.70541522]
[1752038378127,0.76625,2609.7,2609.6,4.91321522]
[1752038378323,3.71405,2609.7,2609.6,4.91321522]
[1752038378927,3.71405,2609.7,2609.6,1.70541522]
[1752038380022,0.76628,2609.6,2609.5,1.70541522]
[1752038380227,30.11587827,2609.6,2609.5,1.70541522]
[1752038380423,31.12457827,2609.6,2609.5,1.70541522]
[1752038380624,31.12457827,2609.6,2609.5,2.33811522]
[1752038380824,28.80157827,2609.6,2609.5,3.10442522]
[1752038381224,27.51008,2609.6,2609.5,3.10442522]
[1752038381926,26.88528,2609.6,2609.5,3.10442522]
[1752038382226,27.51008,2609.6,2609.5,2.33811522]
[1752038382417,27.51008,2609.6,2609.5,1.70541522]
[1752038382826,27.51008,2609.6,2609.5,2.33811522]
[1752038383122,27.51008,2609.6,2609.5,0.6327]
[1752038383323,0.6248,2609.6,2609.5,0.6327]
[1752038383640,26.119,2609.6,2609.5,4.04722522]
[1752038384827,0.76621,2609.9,2609.5,3.28091522]
[1752038385028,0.76619,2610.0,2609.9,0.7662]
[1752038385229,26.88619,2610.0,2609.9,1.3989]
[1752038386027,1.77483,2610.2,2610.1,0.76614]
[1752038386225,0.76614,2610.1,2610.0,1.45034]
[1752038386426,27.54004,2610.1,2610.0,2.11454]
[1752038386828,1.42004,2610.1,2610.0,2.11454]
[1752038388829,1.42004,2610.1,2610.0,1.45034]
[1752038389432,1.42004,2610.1,2610.0,2.11454]
[1752038389627,0.6539,2610.1,2610.0,2.11454]
[1752038390133,1.42004,2610.1,2610.0,1.3484]
[1752038390330,0.76614,2610.1,2610.0,0.6842]
[1752038390533,1.42004,2610.1,2610.0,0.6842]
[1752038390735,1.42004,2610.1,2610.0,1.3484]
[1752038392833,1.42004,2610.1,2610.0,2.11457]
[1752038393135,1.42004,2610.1,2610.0,3.81998522]
[1752038393338,1.42004,2610.1,2610.0,3.05381522]
[1752038393834,26.7709,2610.1,2610.0,3.81998522]
[1752038394034,27.53704,2610.1,2610.0,3.81998522]
[1752038394533,1.42004,2610.1,2610.0,3.81998522]
[1752038395542,1.42004,2610.1,2610.0,3.05381522]
[1752038395842,1.42004,2610.1,2610.0,3.81998522]
[1752038397144,1.42004,2610.1,2610.0,2.11457]
[1752038399644,1.42004,2610.1,2610.0,4.38907282]
[1752038401241,1.42004,2610.1,2610.0,3.62290282]
[1752038401838,2.41194,2610.1,2610.0,3.62290282]
[1752038403445,2.41194,2610.1,2610.0,4.38907282]
[1752038404040,2.41194,2610.1,2610.0,3.62290282]
[1752038404941,1.42004,2610.1,2610.0,3.62290282]
[1752038405141,1.42004,2610.1,2610.0,2.11457]
[1752038405346,1.42004,2610.1,2610.0,4.38907282]
[1752038405547,1.42004,2610.1,2610.0,3.62290282]
[1752038406148,1.42004,2610.1,2610.0,1.3484]
[1752038406347,1.42004,2610.1,2610.0,3.62290282]
[1752038406544,1.42004,2610.1,2610.0,4.38907282]
[1752038407043,1.42004,2610.1,2610.0,2.11457]
[1752038407448,1.42004,2610.1,2610.0,4.38907282]
[1752038407649,1.42004,2610.1,2610.0,2.11457]
[1752038408250,1.42004,2610.1,2610.0,4.38907282]
[1752038410845,0.76614,2610.1,2610.0,4.38907282]
[1752038411051,0.76613,2610.2,2610.1,0.76612]
[1752038411255,0.76613,2610.2,2610.1,3.13612393]
[1752038411256,27.53203,2610.2,2610.1,3.13612393]
[1752038411447,27.53203,2610.2,2610.1,2.47192393]
[1752038411648,27.53203,2610.2,2610.1,3.13612393]
[1752038413156,27.53203,2610.2,2610.1,1.43032]
[1752038414256,27.53203,2610.2,2610.1,0.6642]
[1752038414456,27.53203,2610.2,2610.1,1.43034]
[1752038415152,27.53203,2610.2,2610.1,3.70484282]
[1752038417057,1.42003,2610.2,2610.1,3.70484282]
[1752038417257,1.3266,2610.5,2610.1,2.93870282]
[1752038417556,26.87605,2610.4,2610.3,2.27450282]
[1752038417759,27.50605,2610.4,2610.3,2.93660282]
[1752038418057,28.47675,2610.4,2610.3,2.93660282]
[1752038418657,29.76824827,2610.4,2610.3,2.93660282]
[1752038419258,3.65824827,2610.4,2610.3,2.93660282]
[1752038419557,31.01614827,2610.4,2610.3,2.93660282]
[1752038424857,31.01614827,2610.4,2610.3,2.27450282]
[1752038425255,0.76608,2610.3,2610.2,2.27450282]
[1752038425457,3.62308,2610.3,2610.2,2.27450282]
[1752038425652,11.83088,2610.3,2610.2,2.27450282]
[1752038425961,0.76611,2610.2,2610.1,2.27450282]
[1752038426161,30.69780827,2610.2,2610.1,2.27450282]
[1752038426360,31.66850827,2610.2,2610.1,2.27450282]
[1752038426561,31.66850827,2610.2,2610.1,1.70666059]
[1752038427058,0.76614,2610.1,2610.0,1.70666059]
[1752038427260,4.96563827,2610.1,2610.0,1.70666059]
[1752038428260,1.39614,2610.1,2610.0,3.13493059]
[1752038428465,26.87314,2610.1,2610.0,3.78373059]
[1752038429365,27.50314,2610.1,2610.0,3.78373059]
[1752038429762,27.50314,2610.1,2610.0,2.07707]
[1752038430264,0.76614,2610.1,2610.0,2.07707]
[1752038430462,0.76614,2610.1,2610.0,3.11235]
[1752038430766,0.76614,2610.1,2610.0,2.07705]
[1752038431266,1.39614,2610.1,2610.0,4.35155282]
[1752038432464,0.76604,2610.5,2610.0,10.91220109]
[1752038432760,0.76602,2610.5,2610.4,0.76603]
[1752038433059,0.76602,2610.5,2610.4,2.46343]
[1752038433660,1.39602,2610.5,2610.4,0.6621]
[1752038433859,0.76605,2610.4,2610.3,1.39426]
[1752038434058,0.76605,2610.4,2610.3,3.66876282]
[1752038434260,0.76605,2610.4,2610.3,2.05636]
[1752038435168,0.76605,2610.4,2610.3,4.33086282]
[1752038436266,1.39605,2610.4,2610.3,4.33086282]
[1752038436458,0.76605,2610.4,2610.3,4.33086282]
[1752038437170,1.39605,2610.4,2610.3,5.46200761]
[1752038437663,0.76605,2610.4,2610.3,5.46200761]
[1752038437866,1.39605,2610.4,2610.3,4.69594761]
[1752038438458,1.39605,2610.4,2610.3,5.46202761]
[1752038438670,3.65824827,2610.4,2610.3,3.40564761]
[1752038438966,0.76608,2610.3,2610.2,3.40564761]
[1752038439155,4.28528,2610.3,2610.2,3.40564761]
[1752038439766,4.28528,2610.3,2610.2,0.6621]
[1752038439965,1.2673,2610.3,2610.2,1.42821]
[1752038440267,28.16057827,2610.4,2610.3,0.76608]
[1752038440469,28.79057827,2610.4,2610.3,2.46950295]
[1752038440668,28.79057827,2610.4,2610.3,3.13160295]
[1752038441057,28.79057827,2610.4,2610.3,2.36552295]
[1752038441261,29.76127827,2610.4,2610.3,2.36552295]
[1752038442267,29.76127827,2610.4,2610.3,0.6621]
[1752038442865,0.76608,2610.3,2610.2,1.70342295]
[1752038443067,4.34138,2610.3,2610.2,1.70342295]
[1752038443266,4.34138,2610.3,2610.2,2.36552295]
[1752038443661,4.34138,2610.3,2610.2,1.70342295]
[1752038445063,4.34138,2610.3,2610.1,1.70342295]
[1752038445268,4.32250827,2610.2,2610.1,1.70342295]
[1752038445467,4.95250827,2610.2,2610.1,1.70342295]
[1752038445768,31.05650827,2610.2,2610.1,1.70342295]
[1752038451664,0.76614,2610.1,2610.0,5.47901641]
[1752038451870,0.76614,2610.1,2610.0,6.24518641]
[1752038452070,1.39314,2610.1,2610.0,6.89818641]
[1752038452471,1.39314,2610.1,2610.0,6.13201641]
[1752038453273,1.39314,2610.1,2610.0,6.89818641]
[1752038453785,0.6791,2610.3,2610.0,6.13201641]
[1752038454071,1.44518,2610.3,2610.2,1.70379655]
[1752038454275,28.17618,2610.3,2610.2,2.35679655]
[1752038454476,28.17618,2610.3,2610.2,1.70379655]
[1752038454674,28.17618,2610.3,2610.2,2.35679655]
[1752038455282,26.87008,2610.3,2610.2,2.35679655]
[1752038455477,27.49708,2610.3,2610.2,2.35679655]
[1752038455777,1.39308,2610.3,2610.2,2.35679655]
[1752038455985,26.87008,2610.3,2610.2,3.12290655]
[1752038456478,0.76607,2610.4,2610.3,0.76606]
[1752038456683,0.76607,2610.4,2610.3,1.41906]
[1752038456885,0.76604,2610.5,2610.4,0.76603]
[1752038457087,26.87004,2610.5,2610.4,2.39783]
[1752038457386,26.87004,2610.5,2610.4,4.10162655]
[1752038458289,0.76604,2610.5,2610.4,4.10162655]
[1752038458785,1.39304,2610.5,2610.4,3.12282655]
[1752038459182,1.39304,2610.5,2610.4,2.35679655]
[1752038459379,1.39304,2610.5,2610.4,1.70379655]
[1752038459576,1.39304,2610.5,2610.4,2.35679655]
[1752038460790,0.76605,2610.4,2610.3,1.70379655]
[1752038460983,2.68454827,2610.4,2610.3,1.70379655]
[1752038461185,3.65864827,2610.4,2610.3,1.70379655]
[1752038461385,4.98794827,2610.4,2610.3,1.70379655]
[1752038461581,4.98794827,2610.4,2610.3,2.35679655]
[1752038461788,4.98794827,2610.4,2610.3,1.70379655]
[1752038463693,7.42969827,2610.4,2610.1,3.40564761]
[1752038463892,29.14718,2610.3,2610.2,2.27259179]
[1752038464195,29.77418,2610.3,2610.2,1.70485861]
[1752038464988,0.76614,2610.1,2610.0,5.48039179]
[1752038465193,29.76073827,2610.1,2610.0,5.48039179]
[1752038465695,31.06573827,2610.1,2610.0,5.48039179]
[1752038466593,31.06573827,2610.1,2610.0,3.2078]
[1752038470794,31.06573827,2610.1,2610.0,3.8608]
[1752038471094,31.06573827,2610.1,2610.0,3.2078]
[1752038471296,31.06573827,2610.1,2610.0,3.8608]
[1752038472100,31.06573827,2610.1,2610.0,3.2078]
[1752038478005,0.76617,2610.0,2609.9,5.48039179]
[1752038478199,2.64817,2610.0,2609.9,5.48039179]
[1752038478399,3.63627,2610.0,2609.9,5.48039179]
[1752038478597,3.63627,2610.0,2609.9,6.11729179]
[1752038478803,3.63627,2610.0,2609.9,5.48039179]
[1752038479298,3.63627,2610.0,2609.9,6.11729179]
[1752038479503,1.39967,2610.0,2609.9,6.11729179]
[1752038480204,1.39967,2610.0,2609.9,3.53519179]
[1752038480501,1.39967,2610.0,2609.9,6.10609179]
[1752038480702,1.39967,2610.0,2609.9,6.74299179]
[1752038483002,27.50467,2610.0,2609.9,7.50919179]
[1752038483805,27.50467,2610.0,2609.9,6.74299179]
[1752038485709,27.50467,2610.0,2609.9,7.50919179]
[1752038486707,27.50467,2610.0,2609.9,6.74299179]
[1752038488205,27.50467,2610.0,2609.9,7.50919179]
[1752038488406,27.50467,2610.0,2609.9,4.4704]
[1752038489508,27.50467,2610.0,2609.9,5.2366]
[1752038489708,27.50467,2610.0,2609.9,2.0288]
[1752038492508,27.50467,2610.0,2609.9,1.2626]
[1752038492709,27.50467,2610.0,2609.9,2.0288]
[1752038493006,27.50467,2610.0,2609.9,5.43444761]
[1752038494812,27.50467,2610.0,2609.9,4.79754761]
[1752038495109,27.50467,2610.0,2609.9,0.6257]
[1752038495110,29.87407,2610.0,2609.9,0.6257]
[1752038495706,29.87407,2610.0,2609.8,6.61344761]
[1752038495707,0.76619,2609.9,2609.8,6.61344761]
[1752038495911,3.34418827,2609.9,2609.8,7.25034761]
[1752038496106,4.33228827,2609.9,2609.8,6.61344761]
[1752038497404,5.68638827,2609.9,2609.8,3.40564761]
[1752038497703,49.69418827,2609.9,2609.8,2.2773816]
[1752038497907,0.76622,2609.8,2609.7,2.2773816]
[1752038498118,28.22232,2609.8,2609.7,2.2773816]
[1752038498307,0.76625,2609.7,2609.6,2.2773816]
[1752038498509,4.04534827,2609.7,2609.6,2.2773816]
[1752038498706,5.03344827,2609.7,2609.6,2.2773816]
[1752038499407,0.76628,2609.6,2609.5,2.2773816]
[1752038499607,0.76631,2609.5,2609.4,2.2773816]
[1752038499810,2.68670827,2609.5,2609.4,2.2773816]
[1752038500012,0.76634,2609.4,2609.3,2.9064816]
[1752038500208,26.87034,2609.4,2609.3,2.9064816]
[1752038500512,28.49194,2609.4,2609.3,0.6291]
[1752038500907,28.49194,2609.4,2609.3,1.266]
[1752038502613,29.82454,2609.4,2609.3,1.266]
[1752038504608,29.82454,2609.4,2609.3,0.6369]
[1752038505913,0.7664,2609.2,2609.1,5.4851816]
[1752038506117,29.79719827,2609.2,2609.1,6.1116816]
[1752038506308,29.79719827,2609.2,2609.1,3.8343]
[1752038509413,29.79719827,2609.2,2609.1,3.2078]
[1752038510218,30.47069827,2609.2,2609.1,3.2078]
[1752038514117,0.76649,2608.9,2608.8,5.4851816]
[1752038514317,28.81018827,2608.9,2608.8,3.8343]
[1752038514516,28.81018827,2608.9,2608.8,3.2078]
[1752038514817,29.49108827,2608.9,2608.8,3.8343]
[1752038515018,30.49438827,2608.9,2608.8,3.8343]
[1752038517920,0.76652,2608.8,2608.7,0.672]
[1752038518121,4.97521827,2608.8,2608.7,0.672]
[1752038518321,0.76658,2608.6,2608.5,5.4851816]
[1752038518619,27.51878,2608.6,2608.5,6.1116816]
[1752038519530,28.81027827,2608.6,2608.5,6.1116816]
[1752038520327,28.81027827,2608.6,2608.5,3.8343]
[1752038522220,28.16507827,2608.6,2608.5,3.8343]
[1752038522417,28.81027827,2608.6,2608.5,6.1116816]
[1752038522823,28.16507827,2608.6,2608.5,6.8782916]
[1752038523023,26.87358,2608.6,2608.5,7.8253916]
[1752038523223,0.76658,2608.6,2608.5,9.1443916]
[1752038523426,0.76657,2608.7,2608.6,0.76656]
[1752038523626,26.87457,2608.7,2608.6,2.71206]
[1752038523926,26.87457,2608.7,2608.6,3.65916]
[1752038524126,26.87457,2608.7,2608.6,6.86696]
[1752038524527,26.87457,2608.7,2608.6,6.1004]
[1752038524930,26.87457,2608.7,2608.6,6.86698]
[1752038525224,26.87457,2608.7,2608.6,9.1443616]
[1752038526624,3.24981,2609.2,2608.6,9.1443616]
[1752038526625,4.2111,2609.3,2608.6,9.66927987]
[1752038526832,26.108,2609.2,2608.9,3.2078]
[1752038527037,0.76645,2609.1,2609.0,2.66464]
[1752038527237,0.76645,2609.1,2609.0,3.61174]
[1752038527436,0.76645,2609.1,2609.0,4.23824]
[1752038527738,26.108,2609.1,2609.0,3.4718]
[1752038528435,26.108,2609.1,2609.0,5.7491816]
[1752038528738,0.76641,2609.2,2609.0,5.7491816]
[1752038529036,26.87341,2609.2,2609.1,2.2528]
[1752038529337,26.87341,2609.2,2609.1,2.8793]
[1752038529539,26.87341,2609.2,2609.1,5.1566816]
[1752038530138,26.87341,2609.2,2609.1,2.9038816]
[1752038530438,27.51861,2609.2,2609.1,3.6703116]
[1752038530638,26.87341,2609.2,2609.1,3.6703116]
[1752038531035,27.51861,2609.2,2609.1,3.6703116]
[1752038531235,26.87341,2609.2,2609.1,3.6703116]
[1752038531437,27.51861,2609.2,2609.1,3.6703116]
[1752038532039,27.51761,2609.2,2609.1,3.6703116]
[1752038532333,27.51761,2609.2,2609.1,2.9038816]
[1752038532741,27.51761,2609.2,2609.1,2.2773816]
[1752038532932,27.51761,2609.2,2609.1,2.9038816]
[1752038533136,27.51761,2609.2,2609.1,2.2773816]
[1752038533538,27.51761,2609.2,2609.1,2.9038816]
[1752038535739,27.51761,2609.2,2609.1,2.9456816]
[1752038537148,28.80910827,2609.2,2609.1,2.9456816]
[1752038538549,28.16390827,2609.2,2609.1,2.2773816]
[1752038538748,28.83350827,2609.2,2609.1,2.9456816]
[1752038540350,29.83020827,2609.2,2609.1,2.9456816]
[1752038542950,29.83020827,2609.2,2609.1,3.7121116]
[1752038544451,29.83020827,2609.2,2609.1,2.9456816]
[1752038544750,31.08630827,2609.2,2609.1,2.9456816]
[1752038545653,31.08630827,2609.2,2609.1,2.2773816]